Cogmind - Beta 17 @@@ ROGUE MODE // 2026.07.25 @ 19:18:00 Player: OBLIQUE Result: Destroyed by Striker with Compact Linear Accelerator Performance ------------- Evolutions (9) 4500 Regions Visited (23) 4600 Robots Destroyed (248) 1240 Value Destroyed (11595) 11595 Prototype IDs (82) 1640 Alien Tech Used (0) 0 Bonus (5742) 5742 TOTAL SCORE: 29317 Bonus ------- High Alert Combat Kills 904 Follower Combat Kills 1699 Entered DSFs 500 Network Hubs Disabled 200 Aligned with FarCom 300 Met Warlord at Base 500 MAIN.C Attacked Warlord 500 Warlord Defense Kills 2082 Built Enhanced Grunts 300 A7 Reached Mainframe 300 Friendly Fire -1543 Cogmind --------- Core Integrity 0/1600 Matter 205/300 Energy 97/100 System Corruption 29% Temperature Cool (6) Movement Core (50) Location -1/Command Parts ------- > --- POWER (2) -------- (None) > --- PROPULSION (5) --- (None) > --- UTILITY (13) ----- Advanced Targeting Computer > --- WEAPON (5) ------- (None) > --- INVENTORY (5) ---- Heavy Disruptor Cannon Improved Plasma Cutter Peak State ------------ > --- POWER ------------ Quantum Reactor Quantum Reactor > --- PROPULSION ------- Biometal Leg Centrium Leg Centrium Leg Heavy Shield Leg > --- UTILITY ---------- Advanced Heat Sink Experimental Heat Sink Advanced Cooling System Energy Well Improved Targeting Computer Advanced Targeting Computer Experimental Core Analyzer Experimental Core Analyzer Improved Armor Integrity Analyzer Energy Filter Experimental EM Disruption Field Experimental Hacking Suite Experimental Hacking Suite > --- WEAPON ----------- Gamma Rifle Gamma Rifle Enhanced Quantum Rifle Enhanced Quantum Rifle Enhanced Quantum Rifle > --- INVENTORY -------- Thunder Leg Thunder Leg Biometal Leg Advanced Heat Sink Improved Plasma Cutter [Rating: 192] Favorites ----------- Power Quantum Reactor Engine Heavy Ion Engine Power Core Neutrino Core Reactor Quantum Reactor Propulsion Aluminum Leg Treads Improved Heavy Treads Leg Aluminum Leg Hover Unit Cooled Antigrav System Flight Unit Impulse Thruster Utility Advanced Heat Sink Device Advanced Heat Sink Storage Medium Storage Unit Processor Advanced Signal Interpreter Hackware Experimental Hacking Suite Protection Reflective Plating Weapon Enhanced Quantum Rifle Energy Gun Enhanced Quantum Rifle Energy Cannon Cooled Particle Cannon Ballistic Gun Advanced KE Penetrator Ballistic Cannon Hardcell Cannon Launcher Experimental Neutron Missile Launcher Special Weapon Improved Remote Datajack Impact Weapon Heavy Flail Build | -11 -10 -9 -9 -9 -8 -8 -7 -6 -6 -6 -6 -6 -5 -4 -4 -4 -4 -3 -3 -3 -2 -1 -1 ------- Run | Yrd Mat Mat Min Exi Min Mat Fac Fac Ext Cet Arc Hub Fac Fac Upp Upp War Pro Res DSF Res Acc Com Slots Evolved 18 | . . 2 . . . 2 2 2 . . . . 2 2 . . . . 2 . 2 2 . Power 1 | . . . . . . . . . . . . . . . . . . . 1 . . . . Propulsion 3 | . . . . . . 1 . . . . . . 1 . . . . . . . 1 . . Utility 11 | . . 2 . . . . 1 2 . . . . 1 2 . . . . 1 . 1 1 . Weapon 3 | . . . . . . 1 1 . . . . . . . . . . . . . . 1 . Parts Attached 245 | 6 17 21 . . . 14 6 12 13 5 2 8 13 9 4 2 28 2 3 31 20 19 10 Power 22 | 1 3 4 . . . 1 . 1 2 1 . . 1 1 . . 1 . . 3 1 2 . Engine 12 | 1 3 4 . . . 1 . 1 1 . . . . 1 . . . . . . . . . Core 2 | . . . . . . . . . 1 . . . 1 . . . . . . . . . . Reactor 8 | . . . . . . . . . . 1 . . . . . . 1 . . 3 1 2 . Propulsion 69 | 2 7 7 . . . 1 2 3 1 1 . 2 2 2 1 . 10 1 . 11 4 6 6 Treads 2 | . . . . . . . . . . . . . . . . . . . . 2 . . . Leg 60 | 2 7 7 . . . 1 2 3 1 1 . 2 2 . . . 6 1 . 9 4 6 6 Wheel . | . . . . . . . . . . . . . . . . . . . . . . . . Hover 2 | . . . . . . . . . . . . . . . . . 2 . . . . . . Flight 5 | . . . . . . . . . . . . . . 2 1 . 2 . . . . . . Utility 84 | 1 3 4 . . . 5 2 5 7 2 1 4 5 4 2 1 9 . 3 8 11 5 2 Device 45 | . 1 1 . . . 4 1 2 5 1 1 3 4 1 2 . 4 . 1 3 7 3 1 Storage 9 | 1 1 2 . . . 1 1 1 . . . 1 . . . . . . . . 1 . . Processor 17 | . 1 1 . . . . . 1 . . . . . 3 . 1 3 . 1 . 3 2 1 Hackware 8 | . . . . . . . . . 1 . . . 1 . . . 1 . 1 4 . . . Protection 5 | . . . . . . . . 1 1 1 . . . . . . 1 . . 1 . . . Artifact . | . . . . . . . . . . . . . . . . . . . . . . . . Weapon 70 | 2 4 6 . . . 7 2 3 3 1 1 2 5 2 1 1 8 1 . 9 4 6 2 Energy Gun 46 | 2 4 6 . . . 7 2 . 3 . 1 1 3 1 . . 2 1 . 5 3 5 . Energy Cannon 9 | . . . . . . . . 1 . . . 1 . 1 . 1 2 . . 2 . . 1 Ballistic Gun 3 | . . . . . . . . . . 1 . . . . . . . . . . 1 . 1 Ballistic Cannon 4 | . . . . . . . . . . . . . . . . . 1 . . 2 . 1 . Launcher 4 | . . . . . . . . 1 . . . . 2 . . . 1 . . . . . . Special Weapon 3 | . . . . . . . . 1 . . . . . . 1 . 1 . . . . . . Impact Weapon 1 | . . . . . . . . . . . . . . . . . 1 . . . . . . Slashing Weapon . | . . . . . . . . . . . . . . . . . . . . . . . . Piercing Weapon . | . . . . . . . . . . . . . . . . . . . . . . . . Special Melee Weapon . | . . . . . . . . . . . . . . . . . . . . . . . . Unidentified Prototypes 34 | . . 2 . . . 2 . 1 . 2 . 6 2 2 . . 9 . 1 2 4 . 1 Parts Lost 87 | . 2 1 . . . 2 1 . 2 3 . 3 7 3 1 . 3 12 . 14 2 16 15 Power 5 | . . . . . . . . . . . . . 1 . . . 1 . . 1 . 1 1 Propulsion 24 | . 1 . . . . . 1 . 1 1 . 1 1 1 1 . . 5 . 4 . 2 5 Utility 33 | . 1 . . . . 1 . . 1 . . 1 1 1 . . 1 4 . 4 2 9 7 Weapon 25 | . . 1 . . . 1 . . . 2 . 1 4 1 . . 1 3 . 5 . 4 2 Highest Loss Streak 11 | . 2 1 . . . 1 1 . 1 3 . 2 6 2 1 . 2 8 . 10 1 10 11 To Critical Strikes 2 | . . . . . . . . . . . . . . . . . . . . 2 . . . Average Backups 7 | . 7 9 10 10 10 9 9 9 9 9 10 9 7 3 3 4 4 4 4 3 4 4 3 Power . | . 1 1 1 1 1 1 1 1 . . 1 1 1 . . . . 1 1 . 1 . . Propulsion 1 | . 1 2 2 1 1 . . . 3 3 3 2 . . . . . . . . . 1 . Utility 1 | . 2 1 1 1 1 1 2 2 2 3 3 3 2 . 1 1 . . . . . . . Weapon 2 | . 2 4 6 6 6 6 5 4 2 1 2 2 2 1 . . . . 1 1 2 . . Tool/Special . | . . . . . . . . . . . . . . . . . . . . . . . . Unused Backups 33 | . 2 6 . . . 6 . 5 . . . 3 1 1 . 1 3 . . 2 1 2 . Power 4 | . . 1 . . . 1 . 1 . . . . . . . . . . . 1 . . . Propulsion 3 | . . . . . . . . . . . . 2 . . . . . . . . . 1 . Utility 11 | . 2 1 . . . . . 1 . . . 1 1 1 . 1 2 . . . . 1 . Weapon 15 | . . 4 . . . 5 . 3 . . . . . . . . 1 . . 1 1 . . Tool/Special . | . . . . . . . . . . . . . . . . . . . . . . . . Average Slot Usage (%) 87 | . 95 96 100 100 100 97 93 98 99 99 100 98 82 17 31 37 79 80 27 66 97 93 39 Engine 4 | . 14 11 11 11 11 9 7 6 3 1 . . . . . . 3 . . . . . . Reactor 2 | . . . . . . . . . . 4 6 6 4 . . . . 3 . 3 8 7 . Leg 18 | . 28 22 22 22 22 25 22 20 19 19 20 19 19 . . . 10 13 . 4 20 17 12 Device 14 | . 2 2 11 11 11 10 17 19 20 19 20 21 26 1 11 15 24 22 9 6 19 19 1 Storage 6 | . 14 18 11 11 11 9 7 7 9 6 6 7 6 . . . . . . . 2 3 . Processor 12 | . 7 19 22 22 22 15 7 11 6 6 6 6 4 2 10 10 15 20 16 12 10 17 21 Hackware 3 | . . . . . . . . . 5 6 6 3 . 4 . . 4 4 1 19 16 8 4 Protection 1 | . . . . . . . . 5 4 6 6 5 . . . . 2 . . 1 . . . Energy Gun 16 | . 28 22 22 22 22 26 29 20 20 14 13 13 13 . . . 2 5 . 3 17 18 . Energy Cannon 2 | . . . . . . . . 5 5 5 6 6 4 1 . 3 9 4 . 3 . . . Peak Build Rating 192 | 6 9 17 17 18 18 29 42 68 74 84 86 97 106 50 47 55 139 139 47 148 177 192 122 Average Rating 72 | 3 7 12 17 17 18 25 38 57 70 81 85 88 84 22 36 49 101 111 41 115 165 182 74 On Entrance 53 | . 6 9 17 17 18 18 29 42 68 72 84 86 80 6 32 47 55 139 38 44 140 173 52 Avg Prop Armor Cover (%) 33 | . . . . . . . . . . . . . . 13 . . 11 21 . 43 . 28 39 Naked Turns 78 | . . . . . . . . . . . . . 78 . . . . . . . . . . Heaviest Build 89 | 12 20 28 25 25 25 29 36 52 55 61 62 69 68 9 7 16 76 67 2 82 78 89 43 Greatest Support 150 | 20 20 20 20 20 20 30 45 66 64 64 62 74 89 22 15 15 103 100 3 150 129 148 135 Greatest Overweight (x) 4 | . . 1 1 1 1 1 1 . 1 1 . . 1 . 2 1 4 1 . 4 . . 1 Average Overweight (x) . | . . . 1 1 1 . . . . . . . . . . . . . . . . . . Largest Inventory Capacity 10 | 8 10 10 10 10 10 10 10 10 10 10 10 10 10 5 5 5 5 5 5 5 5 5 5 Average Capacity 8 | 6 8 10 10 10 10 10 10 10 10 10 10 10 9 5 5 5 5 5 5 5 5 5 5 Most Carried 10 | 1 10 10 10 10 10 10 10 10 10 10 10 10 10 5 5 5 5 5 5 5 5 5 5 Average Carried 7 | . 7 9 10 9 10 9 9 9 9 9 10 9 7 4 4 4 4 4 5 3 4 4 4 Final Capacity 10 | 8 10 10 10 10 10 10 10 10 10 10 10 10 5 5 5 5 5 5 5 5 5 5 5 Final Carried 10 | 1 10 10 10 10 10 10 10 10 10 10 10 10 5 5 3 5 5 5 5 5 5 5 3 Class Distribution -------------------- 20% | Scavenger-Skirmisher 19% | Scavenger-Mutant 14% | Mutant 10% | Scavenger-Gunner 10% | Commander-Skirmisher 8% | Skirmisher 4% | Hacker-Gunner Dominant Class ---------------- Mutant | -10/Materials Scavenger-Mutant | -9/Materials Scavenger-Mutant | -9/Mines Scavenger-Mutant | -9/Exiles Scavenger-Mutant | -8/Mines Scavenger-Skirmisher | -8/Materials Scavenger-Skirmisher | -7/Factory Skirmisher | -6/Factory Scavenger-Skirmisher | -6/Extension Commander-Skirmisher | -6/Cetus Commander-Skirmisher | -6/Archives Commander-Skirmisher | -6/Hub_04(d) Scavenger-Tank | -5/Factory Mutant | -4/Factory Mutant | -4/Upper Caves Mutant | -4/Upper Caves Hacker-Skirmisher | -4/Warlord Scavenger-Gunner | -3/Proximity Caves Mutant | -3/Research Wizard-Tank | -3/DSF Hacker-Gunner | -2/Research Scavenger-Gunner | -1/Access Mutant | -1/Command Resources | -11 -10 -9 -9 -9 -8 -8 -7 -6 -6 -6 -6 -6 -5 -4 -4 -4 -4 -3 -3 -3 -2 -1 -1 ----------- Run | Yrd Mat Mat Min Exi Min Mat Fac Fac Ext Cet Arc Hub Fac Fac Upp Upp War Pro Res DSF Res Acc Com Matter Collected 3925 | 260 367 300 . . . 187 65 198 140 108 48 199 140 72 178 51 416 111 . 493 291 293 8 Remotely . | . . . . . . . . . . . . . . . . . . . . . . . . Salvage Created 12541 | . 856 949 . . . 1673 340 631 1570 60 186 971 565 . . . 720 532 . 1064 582 1842 . Parts 504 | . 40 44 . . . 65 10 26 73 1 5 39 23 . . . 18 17 . 30 17 96 . Haulers Intercepted 9 | . 2 3 . . . 3 . . . . . 1 . . . . . . . . . . . Recyclers Shooed 7 | . 4 3 . . . . . . . . . . . . . . . . . . . . . Parts Field Recycled . | . . . . . . . . . . . . . . . . . . . . . . . . Retrieved Matter . | . . . . . . . . . . . . . . . . . . . . . . . . Parts Self-Destructed 16 | . . . . . . . . . . . . . . . 4 . . 12 . . . . . Prevented . | . . . . . . . . . . . . . . . . . . . . . . . . Parts Restored . | . . . . . . . . . . . . . . . . . . . . . . . . Kills | -11 -10 -9 -9 -9 -8 -8 -7 -6 -6 -6 -6 -6 -5 -4 -4 -4 -4 -3 -3 -3 -2 -1 -1 ------- Run | Yrd Mat Mat Min Exi Min Mat Fac Fac Ext Cet Arc Hub Fac Fac Upp Upp War Pro Res DSF Res Acc Com Combat Hostiles Destroyed 192 | . 15 16 . . . 23 5 11 22 1 2 10 15 . . . 15 13 . 13 9 22 . Guns 127 | . 15 15 . . . 21 5 10 11 1 2 7 7 . . . 1 1 . 2 8 21 . Cannons 22 | . . . . . . . . 1 6 . . 3 1 . . . . 1 . 10 . . . AOE 38 | . . . . . . 2 . . 4 . . . 7 . . . 14 11 . . . . . Classes Destroyed 21 | . 6 1 . . . 2 1 3 1 . . . . . . . 3 . . 2 2 . . Worker 11 | . 1 . . . . 3 1 1 . . . 3 . . . . . . . . . 2 . Builder 3 | . . . . . . . . 1 . . . . 1 . . . . . . . . 1 . Hauler 9 | . 2 3 . . . 3 . . . . . 1 . . . . . . . . . . . Recycler 5 | . 2 1 . . . 1 . . 1 . . . . . . . . . . . . . . Mechanic 3 | . . . . . . . . 2 . . . . 1 . . . . . . . . . . Operator 4 | . . . . . . . 1 1 1 . 1 . . . . . . . . . . . . Watcher 15 | . 3 . . . . 4 . 1 2 . . 2 1 . . . . . . . . 2 . Swarmer 24 | . 3 3 . . . . . . 1 . . 2 9 . . . . 5 . . . 1 . Cutter 1 | . . . . . . . . . . . . . . . . . . . . 1 . . . Grunt 79 | . 12 8 . . . 14 4 5 6 . . 6 2 . . . 7 4 . 3 4 4 . Brawler 7 | . . . . . . . . . . . . . . . . . 3 2 . . . 2 . Duelist 8 | . . . . . . 1 1 2 . . . . . . . . 1 1 . . 1 1 . Protector 5 | . . . . . . . . . 1 . . . 1 . . . 3 . . . . . . Sentry 29 | . . 5 . . . 6 . 1 10 . 2 2 1 . . . . 1 . 1 . . . Demolisher 1 | . . . . . . . . . . . . . . . . . . . . . 1 . . Specialist 4 | . . . . . . . . . . . . . . . . . 1 . . 3 . . . Hunter 12 | . . . . . . 2 . . . . . . . . . . . 1 . 4 . 5 . Programmer 16 | . . . . . . . . 3 1 . . . 2 . . . . . . . 1 9 . Heavy 1 | . . . . . . . . . . . . . . . . . . . . 1 . . . Cetus Guard 1 | . . . . . . . . . . 1 . . . . . . . . . . . . . Striker 2 | . . . . . . . . . . . . . . . . . . . . . 2 . . Executioner 1 | . . . . . . . . . . . . . . . . . 1 . . . . . . Thug 1 | . . . . . . . . . 1 . . . . . . . . . . . . . . Guerrilla 5 | . . . . . . . . . 2 . . 3 . . . . . . . . . . . Best Kill Streak 15 | . 4 4 . . . 6 3 11 9 1 3 4 11 . . . 15 8 . 4 3 4 . Combat Bots Only 15 | . 3 4 . . . 6 3 7 9 1 1 3 9 . . . 15 8 . 4 3 4 . Max Kills in Single Turn 7 | . 2 1 . . . 2 1 2 3 1 1 4 6 . . . 7 3 . 1 1 3 . Gunslinging 1 | . 1 . . . . . . 1 . . . . . . . . . . . . . . . Exploded 7 | . . . . . . 1 . . 3 . . . 4 . . . 7 3 . . . . . Melee . | . . . . . . . . . . . . . . . . . . . . . . . . Uniques/NPCs Destroyed 1 | . . . . . . . . . . . . . . . . . 1 . . . . . . LV-01A (-4/Warlord) Combat | -11 -10 -9 -9 -9 -8 -8 -7 -6 -6 -6 -6 -6 -5 -4 -4 -4 -4 -3 -3 -3 -2 -1 -1 -------- Run | Yrd Mat Mat Min Exi Min Mat Fac Fac Ext Cet Arc Hub Fac Fac Upp Upp War Pro Res DSF Res Acc Com Hostile Shots Fired 1564 | . 70 84 . . . 69 15 39 131 23 12 72 116 42 20 . 39 125 . 273 12 191 231 Missed 532 | . 20 22 . . . 20 4 15 63 8 4 24 43 27 9 . 8 53 . 57 4 70 81 Intercepted 1 | . . . . . . . . . . . . . . . . . 1 . . . . . . Deflected 2 | . . . . . . . . . . . . . . . . . . . . . . 2 . Hits 1032 | . 50 62 . . . 49 11 24 68 15 8 48 73 15 11 . 31 72 . 216 8 121 150 Melee 14 | . . . . . . 1 1 1 . . . . 5 . . . . 1 . 1 . 4 . Projectile 1018 | . 50 62 . . . 48 10 23 68 15 8 48 68 15 11 . 31 71 . 215 8 117 150 AOE 14 | . . . . . . . . . . . . . . . . . 12 . . 1 1 . . Critical Strikes 54 | . . 3 . . . 5 . . 5 2 . 2 3 2 1 . 1 1 . 10 . 11 8 Actively Blocked 2 | . . . . . . . . . . . . . 2 . . . . . . . . . . Part Disruptions 4 | . . . . . . . . . . . . . . . . . . . . . . 2 2 Damage Taken 21664 | . 629 799 . . . 794 204 370 808 371 187 1041 1731 277 202 . 900 1722 . 4261 192 3685 3491 Core 4384 | . 93 263 . . . 48 17 30 96 25 24 30 765 67 99 . 196 461 . 545 . 474 1151 Absorbed by Shields 742 | . . . . . . . . . 295 51 . . . . . . 155 . . . . . 241 Reduced by Siege Mode 139 | . . . . . . . . . . . . . . . . . . . . 139 . . . Ignored by Resistances 45 | . . . . . . . . 30 9 . . . . . . . 6 . . . . . . Regen/Repaired (Parts) 274 | . . . . . . 202 . 37 . . . . . . . . 31 . . . 4 . . Core Remaining (%) 66 | 100 62 . . . 34 91 97 . . . . 75 23 . . . . 28 . 58 100 . . Volleys Fired 447 | . 60 59 . . . 62 13 27 49 7 8 27 13 2 . 2 8 13 . 28 16 51 2 Largest 5 | . 2 2 . . . 3 4 4 4 3 4 4 4 1 . 1 2 4 . 4 4 5 2 Hottest 345 | . 115 115 . . . 172 255 249 260 145 195 266 327 75 . 7 164 248 . 304 260 345 185 Shots Fired 1306 | . 120 118 . . . 169 46 79 168 14 25 107 46 2 . 2 15 38 . 61 65 227 4 Gun 1102 | . 120 118 . . . 169 46 60 120 7 18 80 29 . . . 8 18 . 18 65 224 2 Cannon 172 | . . . . . . . . 14 48 4 7 27 12 2 . . 2 9 . 42 . 3 2 Launcher 27 | . . . . . . . . 4 . 2 . . 5 . . . 5 11 . . . . . Special 5 | . . . . . . . . 1 . 1 . . . . . 2 . . . 1 . . . Kinetic 52 | . . . . . . . . . . 1 8 27 . . . . 2 . . 11 . 3 . Thermal 960 | . 120 118 . . . 123 21 60 91 10 15 54 38 . . . 8 18 . 49 65 170 . Explosive 26 | . . . . . . . . 4 . 2 . . 4 . . . 5 11 . . . . . Electromagnetic 254 | . . . . . . 46 25 14 77 . 2 26 4 2 . . . . . . . 54 4 Entropic 9 | . . . . . . . . . . . . . . . . . . 9 . . . . . Robot Hit Streak 33 | . 8 23 . . . 27 15 14 15 14 6 7 9 . . 11 8 6 . 18 12 33 1 Robot Miss Streak 5 | . 3 4 . . . 2 3 5 5 2 5 4 5 . . . 2 4 . 1 2 4 2 Penetration Max 1 | . . . . . . . . . . . 1 1 . . . . . . . . . . . Secondary Targets 17 | . 2 1 . . . 5 1 2 . . . . . . . . . . . . 2 4 . Max Gunslinging Chain 1 | . 1 1 . . . 1 1 1 . . . . . . . . . . . . 1 1 . Shots Hit Robots 871 | . 72 93 . . . 136 30 60 115 10 18 51 25 . . 2 11 20 . 45 44 138 1 Core Hits 584 | . 41 32 . . . 74 21 55 93 6 11 37 35 . . . 42 30 . 26 19 62 . Critical Kills 2 | . . . . . . . . . . . 1 . . . . . . . . 1 . . . Critical Parts Destroyed . | . . . . . . . . . . . . . . . . . . . . . . . . Critical Strikes 37 | . 2 10 . . . 10 1 . . . 1 3 3 . . . . 2 . 3 . 2 . Burn 29 | . 2 10 . . . 10 1 . . . . 3 3 . . . . . . . . . . Meltdown 1 | . . . . . . . . . . . . . . . . . . . . 1 . . . Destroy 1 | . . . . . . . . . . . 1 . . . . . . . . . . . . Blast 2 | . . . . . . . . . . . . . . . . . . . . 2 . . . Corrupt 2 | . . . . . . . . . . . . . . . . . . . . . . 2 . Sunder 2 | . . . . . . . . . . . . . . . . . . 2 . . . . . Melee Attacks 1 | . . . . . . . . . . . . . . . . . 1 . . . . . . Impact 1 | . . . . . . . . . . . . . . . . . 1 . . . . . . Slashing . | . . . . . . . . . . . . . . . . . . . . . . . . Piercing . | . . . . . . . . . . . . . . . . . . . . . . . . Sneak Attacks 1 | . . . . . . . . . . . . . . . . . 1 . . . . . . Combat Hostiles . | . . . . . . . . . . . . . . . . . . . . . . . . Follow-up Attacks . | . . . . . . . . . . . . . . . . . . . . . . . . Damage Inflicted 31958 | . 992 1328 6 . . 2733 607 2152 3247 467 454 2430 2285 . . . 4507 3044 . 1617 1510 4540 39 Guns 17198 | . 961 1328 . . . 2445 577 1225 1994 123 322 1185 474 . . . 158 269 . 438 1510 4189 . Cannons 3637 | . . . . . . . . 135 708 81 132 577 201 . . . 71 487 . 1166 . 43 36 Explosions 10807 | . . . . . . 255 30 765 543 263 . 635 1603 . . . 4191 2288 . . . 234 . Melee 87 | . . . . . . . . . . . . . . . . . 87 . . . . . . Ramming 229 | . 31 . 6 . . 33 . 27 2 . . 33 7 . . . . . . 13 . 74 3 Kinetic 1072 | . . . . . . . . . . . 156 434 . . . . 71 . . 368 . 43 . Thermal 16745 | . 961 1328 . . . 1843 230 1181 2062 204 287 1022 675 . . . 158 454 . 1236 1510 3594 . Explosive 8614 | . . . . . . . . 708 . 263 . . 1349 . . . 4191 2103 . . . . . Electromagnetic 4724 | . . . . . . 857 377 236 1183 . 11 941 254 . . . . . . . . 829 36 Impact 87 | . . . . . . . . . . . . . . . . . 87 . . . . . . Slashing . | . . . . . . . . . . . . . . . . . . . . . . . . Piercing . | . . . . . . . . . . . . . . . . . . . . . . . . Entropic 487 | . . . . . . . . . . . . . . . . . . 487 . . . . . Highest Corruption 29 | . . . . . . . 2 1 1 1 1 5 3 8 10 10 10 2 1 4 1 18 29 Average Corruption 4 | . . . . . . . 2 1 1 1 1 1 1 5 9 10 1 1 1 3 1 6 19 Corruption Purged . | . . . . . . . . . . . . . . . . . . . . . . . . Corruption Blocked . | . . . . . . . . . . . . . . . . . . . . . . . . Effects 126 | . . . . . . . 4 1 11 2 4 3 1 9 9 2 2 8 . 6 2 32 30 Message Errors 34 | . . . . . . . 2 . 4 . 1 . . 3 1 1 1 1 . 1 1 12 6 Matter Fused 30 | . . . . . . . 1 . . 1 1 . 1 2 5 . . 3 . 3 . 6 7 Heat Flow Errors 11 | . . . . . . . . . . . . 1 . . 1 . . 1 . . . 2 6 Energy Discharges 15 | . . . . . . . . . 3 . 1 1 . . 1 1 1 . . 1 . 2 4 Parts Fused 1 | . . . . . . . . . . . . . . . . . . . . . . 1 . Data Loss (minor) 15 | . . . . . . . 1 . 3 . . 1 . 4 . . . 1 . . . 3 2 Data Loss (major) 4 | . . . . . . . . 1 . 1 . . . . . . . . . . . 2 . Misfires 2 | . . . . . . . . . . . . . . . . . . 1 . . 1 . . Alerts 4 | . . . . . . . . . 1 . . . . . . . . . . . . 2 1 Misdirections 6 | . . . . . . . . . . . . . . . 1 . . . . . . 1 4 Weapon Failures 4 | . . . . . . . . . . . 1 . . . . . . 1 . 1 . 1 . Overload Shots 3 | . . . . . . . . 3 . . . . . . . . . . . . . . . Overflow Damage 257 | . . . . . . . . 5 . 17 . 40 11 . . . 99 40 . 2 . 43 . Projectiles 12 | . . . . . . . . . . . . . 10 . . . . . . 2 . . . Explosions 163 | . . . . . . . . 5 . 17 . 40 1 . . . 39 40 . . . 21 . Melee 82 | . . . . . . . . . . . . . . . . . 60 . . . . 22 . Knockbacks 6 | . . . . . . . . 1 . . . . . . . . . . . 4 . 1 . Impact 1 | . . . . . . . . 1 . . . . . . . . . . . . . . . Kinetic 5 | . . . . . . . . . . . . . . . . . . . . 4 . 1 . Secondary . | . . . . . . . . . . . . . . . . . . . . . . . . Self-Inflicted Damage 524 | . . . . . . . . . 99 . . 98 88 . . . . 238 . . . . 1 Shots 9 | . . . . . . . . . 2 . . 1 3 . . . . 3 . . . . . Rammed 5 | . . . . . . . . . . . . . 3 . . . . . . 1 . . 1 Targets Rammed 30 | . 6 . 1 . . 6 . 4 1 . . 3 3 . . . . . . 1 . 3 2 Kicked 25 | . 6 . 1 . . 6 . 4 1 . . 3 . . . . . . . . . 3 1 Crushed . | . . . . . . . . . . . . . . . . . . . . . . . . Highest Temperature 459 | . 272 389 . . . 285 422 178 195 18 27 434 . . 139 . 47 199 . 459 . 186 241 Average Temperature 89 | . 103 95 . . . 86 136 76 47 11 14 113 . . 77 . 15 83 . 156 . 33 73 Received Heat Transfer 2901 | . 336 429 . . . 414 99 93 255 48 27 156 231 12 . . 105 243 . 225 9 135 84 Effects 3 | . . 2 . . . . . . . . . . . . . . . . . 1 . . . Shutdowns 1 | . . . . . . . . . . . . . . . . . . . . 1 . . . Matter Decay 1 | . . 1 . . . . . . . . . . . . . . . . . . . . . Short Circuit 1 | . . 1 . . . . . . . . . . . . . . . . . . . . . Siege Activations 2 | . . . . . . . . . . . . . . . . . . . . 2 . . . Total Turns 51 | . . . . . . . . . . . . . . . . . . . . 51 . . . Longest Duration 28 | . . . . . . . . . . . . . . . . . . . . 28 . . . Martial Activations . | . . . . . . . . . . . . . . . . . . . . . . . . Shielding Activations 2 | . . . . . . . . . . . . . . . . . . . . . . 2 . Total Turns 17 | . . . . . . . . . . . . . . . . . . . . . . 17 . Longest Duration 9 | . . . . . . . . . . . . . . . . . . . . . . 9 . Robots Disrupted 1 | . . . . . . . . . 1 . . . . . . . . . . . . . . Combat Hostiles . | . . . . . . . . . . . . . . . . . . . . . . . . Robots Corrupted . | . . . . . . . . . . . . . . . . . . . . . . . . Combat Hostiles . | . . . . . . . . . . . . . . . . . . . . . . . . Parts Fried 13 | . . . . . . 1 1 . 5 . . 2 1 . . . . . . . . 3 . Impact Corruptions 2 | . . . . . . . . . . . . . . . . . 1 . . . . 1 . Robots Melted 8 | . . 2 . . . . . . 1 . . . . . . . . . . 3 1 1 . Combat Hostiles 5 | . . 1 . . . . . . 1 . . . . . . . . . . 1 1 1 . Parts Melted 77 | . 5 12 . . . 11 6 6 5 1 2 . 2 . . . . 1 . 9 3 14 . Heat Transferred 28390 | . 2576 4181 . . . 4392 571 2410 3274 386 535 1332 889 . . . 185 520 . 1369 1785 3985 . Parts Sabotaged 3 | . . . . . . . . . . . . . 3 . . . . . . . . . . Parts Stolen . | . . . . . . . . . . . . . . . . . . . . . . . . Parts Stripped . | . . . . . . . . . . . . . . . . . . . . . . . . Power Chain Reactions 12 | . . . . . . 5 1 . 3 . . . . . . . . 1 . . . 2 . Alert | -11 -10 -9 -9 -9 -8 -8 -7 -6 -6 -6 -6 -6 -5 -4 -4 -4 -4 -3 -3 -3 -2 -1 -1 ------- Run | Yrd Mat Mat Min Exi Min Mat Fac Fac Ext Cet Arc Hub Fac Fac Upp Upp War Pro Res DSF Res Acc Com Maximum Alert Level 4 | . . . . . . 1 . 2 4 3 1 4 3 2 . . . . . 1 . . . Low Security (%) 66 | 100 100 100 100 . 100 81 100 90 16 . . 1 . . . . . . 100 48 100 100 100 Level 1 12 | . . . . . . 18 . 4 37 . 100 12 . 54 . . . . . 51 . . . Level 2 11 | . . . . . . . . 4 7 97 . 28 70 45 . . . . . . . . . Level 3 6 | . . . . . . . . . 28 2 . 32 29 . . . . . . . . . . Level 4 2 | . . . . . . . . . 10 . . 24 . . . . . . . . . . . Level 5 . | . . . . . . . . . . . . . . . . . . . . . . . . High Security . | . . . . . . . . . . . . . . . . . . . . . . . . Max Security . | . . . . . . . . . . . . . . . . . . . . . . . . Sterilizations 1 | . . . . . . . . . . . . . . . . . . . . 1 . . . Peak Influence 1495 | . 121 158 49 . . 340 97 419 1226 703 355 1495 1090 520 . . . . 166 302 169 150 98 Initial 690 | . . 37 49 . . . 78 3 198 679 212 99 690 520 . . . . 128 109 169 40 80 Average 221 | . 64 57 6 . . 95 39 53 494 616 310 801 718 410 . . . . 138 204 80 59 28 Influence Increases 9688 | . 460 460 . . . 746 149 598 1689 177 203 1763 740 182 . . 495 431 48 333 237 779 198 Destroy 0b10 Robot/C 4620 | . 300 320 . . . 460 120 280 760 60 80 540 280 . . . 260 280 . 260 180 440 . Destroy 0b10 Robot/NC 320 | . 40 20 . . . 55 10 30 40 5 5 50 20 . . . 10 . . 10 . 25 . Destroy Leader 852 | . 70 106 . . . 134 10 72 86 . . 138 42 . . . . 30 . 40 40 84 . Allied During Kill 1462 | . . . . . . . 3 13 630 65 85 637 . . . . . 16 . . 1 12 . Successful Hack 373 | . 20 10 . . . 25 . 64 77 8 . 40 . 2 . . . . 48 . 7 54 18 Select Force Hacks 50 | . . . . . . . . . . . . . . . . . . . . . . 50 . Disable Machine 390 | . . . . . . . . 45 15 15 30 165 75 15 . . . . . . . 15 15 Destroy Structure 466 | . . 4 . . . 27 6 79 51 24 3 133 98 . . . . . . 8 9 24 . Partial Spotted 120 | . 15 . . . . . . . . . . 15 15 45 . . . . . . . . 30 Lose Combat Pursuer 1035 | . 15 . . . . 45 . 15 30 . . 45 210 120 . . 225 105 . 15 . 75 135 Influence Decreases 9688 | . 370 421 129 . . 573 314 199 882 859 450 638 1088 858 253 56 221 591 93 177 471 722 323 Entered New Map 3648 | . . 53 80 . . . 95 5 209 535 320 186 720 542 143 26 77 351 63 37 133 28 45 Time Decay 4659 | . 340 358 49 . . 403 209 174 553 214 90 262 278 286 100 30 114 130 30 . 318 554 167 Lost Part 781 | . 20 10 . . . 20 10 . 20 30 . 30 70 30 10 . 30 110 . 140 20 120 111 Lost Ally 450 | . 10 . . . . . . 20 100 80 40 160 20 . . . . . . . . 20 . Purge Threat 150 | . . . . . . 150 . . . . . . . . . . . . . . . . . Squads Dispatched 63 | . 3 2 . . . 3 1 7 5 . . 9 10 2 . . . 1 . 3 1 11 5 Investigation 14 | . 2 1 . . . 1 . 2 2 . . 1 . 1 . . . . . . 1 1 2 Extermination 14 | . . . . . . . 1 2 . . . 1 2 1 . . . . . . . 5 2 Reinforcement 22 | . 1 1 . . . 2 . 1 2 . . 5 4 . . . . . . 3 . 2 1 Assault 9 | . . . . . . . . 2 1 . . 1 4 . . . . 1 . . . . . Garrison 4 | . . . . . . . . . . . . 1 . . . . . . . . . 3 . Intercept . | . . . . . . . . . . . . . . . . . . . . . . . . Searches Triggered . | . . . . . . . . . . . . . . . . . . . . . . . . Construction Impeded 8 | . . . . . . 1 . 1 1 . . 3 1 . . . . . . . . 1 . Haulers Reinforced 1 | . . . . . . . . . . . . 1 . . . . . . . . . . . Active Scanning Responses . | . . . . . . . . . . . . . . . . . . . . . . . . Cargo Convoy Interrupts . | . . . . . . . . . . . . . . . . . . . . . . . . Stealth | -11 -10 -9 -9 -9 -8 -8 -7 -6 -6 -6 -6 -6 -5 -4 -4 -4 -4 -3 -3 -3 -2 -1 -1 --------- Run | Yrd Mat Mat Min Exi Min Mat Fac Fac Ext Cet Arc Hub Fac Fac Upp Upp War Pro Res DSF Res Acc Com Distress Signals 26 | . 4 1 . . . 3 . . . 1 . 1 2 1 . . 1 . . . 8 3 1 Communications Jammed . | . . . . . . . . . . . . . . . . . . . . . . . . Distress Signals . | . . . . . . . . . . . . . . . . . . . . . . . . Times Spotted 428 | . 22 18 . . . 30 8 21 45 5 7 31 41 19 3 . 50 23 . 17 26 35 27 Peak Tracking Total 18 | . 5 3 . . . 6 3 4 6 5 2 9 18 15 2 . 18 9 . 6 6 6 18 Tactical Retreats 30 | . 1 . . . . 3 . 1 1 . . 3 3 3 . . 4 3 . 1 . 2 5 Traps | -11 -10 -9 -9 -9 -8 -8 -7 -6 -6 -6 -6 -6 -5 -4 -4 -4 -4 -3 -3 -3 -2 -1 -1 ------- Run | Yrd Mat Mat Min Exi Min Mat Fac Fac Ext Cet Arc Hub Fac Fac Upp Upp War Pro Res DSF Res Acc Com Traps Triggered 21 | . 2 1 . . . . 2 . 1 . . 1 2 1 . . . . 1 1 . 3 6 Indirectly . | . . . . . . . . . . . . . . . . . . . . . . . . Trap Hack Attempts . | . . . . . . . . . . . . . . . . . . . . . . . . Triggered . | . . . . . . . . . . . . . . . . . . . . . . . . Disarmed . | . . . . . . . . . . . . . . . . . . . . . . . . Reprogrammed . | . . . . . . . . . . . . . . . . . . . . . . . . Reused . | . . . . . . . . . . . . . . . . . . . . . . . . Traps Extracted . | . . . . . . . . . . . . . . . . . . . . . . . . Installed . | . . . . . . . . . . . . . . . . . . . . . . . . Triggered . | . . . . . . . . . . . . . . . . . . . . . . . . Machines | -11 -10 -9 -9 -9 -8 -8 -7 -6 -6 -6 -6 -6 -5 -4 -4 -4 -4 -3 -3 -3 -2 -1 -1 ---------- Run | Yrd Mat Mat Min Exi Min Mat Fac Fac Ext Cet Arc Hub Fac Fac Upp Upp War Pro Res DSF Res Acc Com Machines Disabled 30 | . . . . . . . . 3 3 1 2 11 5 1 . . 1 1 . . . 1 1 Max in Single Turn 6 | . . . . . . . . 2 1 1 1 6 4 1 . . 1 1 . . . 1 1 Garrison Access 6 | . . . . . . . . 1 . . . 1 1 . . . . . . . 2 1 . Network Hub 1 | . . . . . . . . . . . . 1 . . . . . . . . . . . Machines Repaired . | . . . . . . . . . . . . . . . . . . . . . . . . Machines Dismantled 1 | . . . . . . . . . . . . . . . . . 1 . . . . . . Machines Sabotaged . | . . . . . . . . . . . . . . . . . . . . . . . . Overloaded Fab Kills 1 | . . . . . . . . . . . . . . . . . . . . . . 1 . Hacking | -11 -10 -9 -9 -9 -8 -8 -7 -6 -6 -6 -6 -6 -5 -4 -4 -4 -4 -3 -3 -3 -2 -1 -1 --------- Run | Yrd Mat Mat Min Exi Min Mat Fac Fac Ext Cet Arc Hub Fac Fac Upp Upp War Pro Res DSF Res Acc Com Machines Accessed 89 | . 7 6 . 2 . 9 2 8 16 1 . 8 2 4 . . 4 . 2 . 4 8 6 Terminals 67 | . 7 4 . . . 7 2 5 16 1 . 7 1 2 . . . . 2 . 2 5 6 Fabricators 6 | . . . . . . . . 2 . . . . . 2 . . . . . . 1 1 . Repair Stations 2 | . . . . . . 1 . 1 . . . . . . . . . . . . . . . Recycling Units . | . . . . . . . . . . . . . . . . . . . . . . . . Scanalyzers 4 | . . 2 . . . 1 . . . . . . . . . . . . . . . 1 . Garrison Access 4 | . . . . . . . . . . . . 1 1 . . . . . . . 1 1 . Total Hacks 285 | . 25 20 . 5 . 45 3 32 42 2 . 26 6 15 . . 6 . 6 . 15 20 17 Successful 148 | . 8 11 . 5 . 28 . 17 20 1 . 17 2 5 . . 6 . 3 . 14 10 1 Failed 132 | . 16 8 . . . 16 3 14 21 1 . 9 4 10 . . . . 3 . 1 10 16 Catastrophic 17 | . 3 . . . . 1 1 . 2 1 . . . 2 . . . . . . . 1 6 Database Lockouts 5 | . 1 1 . . . 1 . 1 1 . . . . . . . . . . . . . . Manual 125 | . 19 12 . 1 . 16 1 13 12 1 . 14 5 9 . . . . 2 . 10 4 6 Terminals 223 | . 25 15 . . . 32 3 20 42 2 . 23 5 11 . . . . 6 . 10 12 17 Fabricators 18 | . . . . . . . . 10 . . . . . 4 . . . . . . 1 3 . Repair Stations 8 | . . . . . . 6 . 2 . . . . . . . . . . . . . . . Recycling Units . | . . . . . . . . . . . . . . . . . . . . . . . . Scanalyzers 16 | . . 5 . . . 7 . . . . . . . . . . . . . . . 4 . Garrison Access 9 | . . . . . . . . . . . . 3 1 . . . . . . . 4 1 . Terminal Hacks 87 | . 6 4 . 5 . 12 . 7 17 1 . 9 1 1 . . 6 . 2 . 8 7 1 Record 10 | . . . . 4 . . . . . . . . . . . . 4 . . . 1 . 1 Part Schematic 3 | . . . . . . . . 1 . . . . . . . . . . . . 2 . . Robot Analysis 5 | . 1 . . . . 1 . . 1 . . 1 . . . . . . . . . 1 . Prototype ID Bank 16 | . 2 1 . . . 4 . 3 3 . . 2 . . . . . . . . 1 . . Open Door 16 | . . . . . . . . . 10 1 . . . . . . 2 . . . . 3 . Open DSF 1 | . . . . . . . . . . . . . . . . . . . 1 . . . . Level Access Points 3 | . . . . . . . . 1 . . . . 1 . . . . . . . 1 . . Branch Access Points 3 | . . 1 . . . . . . . . . . . 1 . . . . . . . 1 . Emergency Access Points 1 | . . . . . . . . . . . . 1 . . . . . . . . . . . Machine Index 2 | . . . . . . . . . . . . 1 . . . . . . . . 1 . . Terminal Index 4 | . 1 1 . . . . . . 1 . . . . . . . . . 1 . . . . Alert Level 4 | . 2 . . . . 1 . . . . . . . . . . . . . . . 1 . Unreport Threat 1 | . . . . . . 1 . . . . . . . . . . . . . . . . . Locate Traps 4 | . . . . . . 1 . 1 . . . 1 . . . . . . . . . 1 . Dispatch Records 2 | . . . . . . 1 . . . . . 1 . . . . . . . . . . . Recall Reinforcements 1 | . . . . . . . . . . . . 1 . . . . . . . . . . . Hauler Manifests 1 | . . . . . . 1 . . . . . . . . . . . . . . . . . Registered Components 1 | . . . . . . 1 . . . . . . . . . . . . . . . . . Zone Layout 8 | . . 1 . . . 1 . 1 2 . . 1 . . . . . . . . 2 . . Proto ID Catalog 1 | . . . . 1 . . . . . . . . . . . . . . . . . . . Fabricator Hacks 8 | . . . . . . . . 5 . . . . . 2 . . . . . . 1 . . Network Status 1 | . . . . . . . . 1 . . . . . . . . . . . . . . . Load Schematic 3 | . . . . . . . . 2 . . . . . 1 . . . . . . . . . Build 4 | . . . . . . . . 2 . . . . . 1 . . . . . . 1 . . Repair Station Hacks 8 | . . . . . . 6 . 2 . . . . . . . . . . . . . . . Scan Component 4 | . . . . . . 3 . 1 . . . . . . . . . . . . . . . Repair 4 | . . . . . . 3 . 1 . . . . . . . . . . . . . . . Recycling Unit Hacks . | . . . . . . . . . . . . . . . . . . . . . . . . Scanalyzer 10 | . . 3 . . . 6 . . . . . . . . . . . . . . . 1 . Insert Component 3 | . . . . . . 3 . . . . . . . . . . . . . . . . . Analyze 2 | . . . . . . 2 . . . . . . . . . . . . . . . . . Retrieve Study 5 | . . 3 . . . 1 . . . . . . . . . . . . . . . 1 . Garrison Access Hacks 3 | . . . . . . . . . . . . 1 1 . . . . . . . . 1 . Seal Access 3 | . . . . . . . . . . . . 1 1 . . . . . . . . 1 . Unauthorized Hacks 32 | . 2 4 . . . 4 . 3 3 . . 7 . 2 . . . . 1 . 5 1 . Terminals 24 | . 2 4 . . . 4 . 2 3 . . 5 . 2 . . . . 1 . 1 . . Track 2 | . . 1 . . . . . . . . . . . 1 . . . . . . . . . Assimilate 1 | . 1 . . . . . . . . . . . . . . . . . . . . . . Botnet 17 | . 1 2 . . . 3 . 2 3 . . 3 . 1 . . . . 1 . 1 . . Disrupt 4 | . . 1 . . . 1 . . . . . 2 . . . . . . . . . . . Fabricators 2 | . . . . . . . . 1 . . . . . . . . . . . . . 1 . Fabnet 1 | . . . . . . . . 1 . . . . . . . . . . . . . . . Overload 1 | . . . . . . . . . . . . . . . . . . . . . . 1 . Repair Stations . | . . . . . . . . . . . . . . . . . . . . . . . . Recycling Units . | . . . . . . . . . . . . . . . . . . . . . . . . Scanalyzers . | . . . . . . . . . . . . . . . . . . . . . . . . Garrison Access 6 | . . . . . . . . . . . . 2 . . . . . . . . 4 . . Broadcast 1 | . . . . . . . . . . . . . . . . . . . . . 1 . . Reprogram 2 | . . . . . . . . . . . . 1 . . . . . . . . 1 . . Intercept 2 | . . . . . . . . . . . . 1 . . . . . . . . 1 . . Watchers 1 | . . . . . . . . . . . . . . . . . . . . . 1 . . Data Cores Recovered 4 | . . . . . . . 1 1 1 . . 1 . . . . . . . . . . . Used 3 | . . . . . . . 1 1 . . . 1 . . . . . . . . . . . Hacking Detections 69 | . 7 6 . . . 9 2 8 11 . . 7 1 4 . . . . 1 . 3 4 6 Full Trace Events 7 | . . . . . . 1 . 2 1 . . . . 1 . . . . . . . . 2 Feedback Events . | . . . . . . . . . . . . . . . . . . . . . . . . Feedback Blocked . | . . . . . . . . . . . . . . . . . . . . . . . . Robot Schematics Acquired . | . . . . . . . . . . . . . . . . . . . . . . . . Robots Built . | . . . . . . . . . . . . . . . . . . . . . . . . Authchips . | . . . . . . . . . . . . . . . . . . . . . . . . Time . | . . . . . . . . . . . . . . . . . . . . . . . . Total Robot Build Rating . | . . . . . . . . . . . . . . . . . . . . . . . . Part Schematics Acquired 5 | . . . . . . 2 . 1 . . . . . . . . . . . . 2 . . Parts Built 8 | . . . . . . . . 4 . . . . . 2 . . . . . . 2 . . Authchips . | . . . . . . . . . . . . . . . . . . . . . . . . Time 316 | . . . . . . . . 141 . . . . . 106 . . . . . . 69 . . Total Part Build Rating 54 | . . . . . . . . 24 . . . . . 12 . . . . . . 18 . . Part Studies Acquired 5 | . . 3 . . . 1 . . . . . . . . . . . . . . . 1 . Parts Repaired 4 | . . . . . . 3 . 1 . . . . . . . . . . . . . . . Time 116 | . . . . . . 78 . 38 . . . . . . . . . . . . . . . Parts Recycled . | . . . . . . . . . . . . . . . . . . . . . . . . Recycled Matter . | . . . . . . . . . . . . . . . . . . . . . . . . Retrieved Matter . | . . . . . . . . . . . . . . . . . . . . . . . . Retrieved Components . | . . . . . . . . . . . . . . . . . . . . . . . . Parts Scanalyzed 2 | . . . . . . 2 . . . . . . . . . . . . . . . . . Part Schematics Acquired 2 | . . . . . . 2 . . . . . . . . . . . . . . . . . Parts Damaged . | . . . . . . . . . . . . . . . . . . . . . . . . Bothacking | -11 -10 -9 -9 -9 -8 -8 -7 -6 -6 -6 -6 -6 -5 -4 -4 -4 -4 -3 -3 -3 -2 -1 -1 ------------ Run | Yrd Mat Mat Min Exi Min Mat Fac Fac Ext Cet Arc Hub Fac Fac Upp Upp War Pro Res DSF Res Acc Com Used RIF Installer . | . . . . . . . . . . . . . . . . . . . . . . . . Robots Hacked 1 | . . . . . . . . . . . . . . . . 1 . . . . . . . Non-combat 1 | . . . . . . . . . . . . . . . . 1 . . . . . . . Combat . | . . . . . . . . . . . . . . . . . . . . . . . . Robot Hacks Applied 2 | . . . . . . . . . . . . . . . . 2 . . . . . . . parse_system 1 | . . . . . . . . . . . . . . . . 1 . . . . . . . no_distress 1 | . . . . . . . . . . . . . . . . 1 . . . . . . . Relay Couplers Released 5 | . . . . . . . . 1 . . . 3 . . . . . . . . 1 . . Machine Destruction 5 | . . . . . . . . 1 . . . 3 . . . . . . . . 1 . . Fabnet Peak Effective % . | . . . . . . . . . . . . . . . . . . . . . . . . Robots Rewired 19 | . . . . . . . 1 . 12 . . . . . . . 4 1 . . 1 . . Allies Hacked . | . . . . . . . . . . . . . . . . . . . . . . . . Hacks Repelled . | . . . . . . . . . . . . . . . . . . . . . . . . Allies | -11 -10 -9 -9 -9 -8 -8 -7 -6 -6 -6 -6 -6 -5 -4 -4 -4 -4 -3 -3 -3 -2 -1 -1 -------- Run | Yrd Mat Mat Min Exi Min Mat Fac Fac Ext Cet Arc Hub Fac Fac Upp Upp War Pro Res DSF Res Acc Com Total Allies 39 | . 1 . . . . . 1 1 23 6 . . . . . . 4 1 . . 2 . . Largest Group 16 | . 1 . . . . . 1 1 15 16 16 13 . . . . 4 1 . . 1 1 . Highest-Rated Group 955 | . 10 . . . . . 16 90 540 955 955 773 . . . . 233 47 . . 64 64 . Highest-Rated Ally 159 | . 10 . . . . . 16 90 159 137 137 96 . . . . 64 47 . . 64 64 . Initial Warlord ECA Mod 9 | . . . . . . . . . . . . . . . . . . . . . 9 8 8 Total Orders 2 | . . . . . . . . . . . . 1 . . . . 1 . . . . . . STAY 2 | . . . . . . . . . . . . 1 . . . . 1 . . . . . . Ally Attacks 330 | . . . . . . . 5 12 145 22 11 122 . . . . 5 3 . . . 5 . Total Damage 8549 | . . . . . . . 67 211 3082 813 313 3521 . . . . 245 83 . . . 214 . Kills 56 | . . . . . . . 1 3 22 4 2 23 . . . . . 1 . . . . . Allies Corrupted 2 | . . . . . . . 1 . . . . 1 . . . . . . . . . . . Allies Melted 3 | . . . . . . . . . . . . . . . . . 1 . . . 2 . . Field Lobotomies 2 | . . . . . . . . 1 . 1 . . . . . . . . . . . . . Intel | -11 -10 -9 -9 -9 -8 -8 -7 -6 -6 -6 -6 -6 -5 -4 -4 -4 -4 -3 -3 -3 -2 -1 -1 ------- Run | Yrd Mat Mat Min Exi Min Mat Fac Fac Ext Cet Arc Hub Fac Fac Upp Upp War Pro Res DSF Res Acc Com Active Infowar (turns) 5821 | . . 801 464 450 181 1257 562 800 . . . . . . 206 79 704 317 . . . . . Sensors 1306 | . . . . . . . . . . . . . . . 206 79 704 317 . . . . . T.N.C. 4515 | . . 801 464 450 181 1257 562 800 . . . . . . . . . . . . . . . Robot Analysis Total 5 | . 1 . . . . 1 . . 1 . . 1 . . . . . . . . . 1 . Derelict Logs Recovered 4 | . . . 1 . . . . . . . . . . . 2 1 . . . . . . . Drone Launches 2 | . . . . . . . . . . . . . 2 . . . . . . . . . . Drone Recoveries . | . . . . . . . . . . . . . . . . . . . . . . . . Exploration | -11 -10 -9 -9 -9 -8 -8 -7 -6 -6 -6 -6 -6 -5 -4 -4 -4 -4 -3 -3 -3 -2 -1 -1 ------------- Run | Yrd Mat Mat Min Exi Min Mat Fac Fac Ext Cet Arc Hub Fac Fac Upp Upp War Pro Res DSF Res Acc Com Turns Passed 14945 | 54 979 1021 464 450 181 1257 562 999 1617 451 189 561 603 625 216 79 935 377 76 359 713 1662 515 Spaces Moved 10261 | 40 511 416 244 235 96 541 383 552 921 203 106 377 508 655 412 169 785 390 141 167 478 1136 795 Core 1515 | 5 . . . . . . . . . . . . 184 57 1 . 5 156 141 69 . 125 772 Treads 39 | . . . . . . . . . . . . . . . . . . . . 39 . . . Legs 7320 | 35 511 416 244 235 96 541 383 552 921 203 106 377 324 . . . 571 234 . 59 478 1011 23 Wheels . | . . . . . . . . . . . . . . . . . . . . . . . . Hover 1 | . . . . . . . . . . . . . . . . . 1 . . . . . . Flight 1386 | . . . . . . . . . . . . . . 598 411 169 208 . . . . . . Fastest Speed 30 | 50 120 120 190 190 190 120 120 120 120 120 120 120 50 37 40 40 30 50 50 50 118 50 50 Average Speed 105 | 111 120 179 190 190 190 127 126 122 120 123 120 120 90 40 43 40 93 82 50 106 119 109 52 Slowest Speed 250 | 120 120 190 190 190 190 190 190 123 180 180 120 120 112 50 150 120 250 170 50 250 120 122 125 Overloaded Moves . | . . . . . . . . . . . . . . . . . . . . . . . . Propulsion Burnouts . | . . . . . . . . . . . . . . . . . . . . . . . . Robots Hopped 7 | . . . . . . . . . . . . . . 7 . . . . . . . . . Potential Cave-ins . | . . . . . . . . . . . . . . . . . . . . . . . . Cave-ins Triggered . | . . . . . . . . . . . . . . . . . . . . . . . . Exploration Rate (%) 45 | 2 80 32 50 61 33 54 12 15 85 73 86 43 18 16 60 40 84 71 5 89 19 31 31 Regions Visited 23 Branch Regions 12 Pre-discovered Areas 3 | . . . . 1 . . . . . . . . . . 1 1 . . . . . . . Known Exits Taken 15 | . . 1 . . . . . 1 1 1 1 1 1 1 1 1 1 1 1 . 1 1 . Unknown Exits Taken 7 | 1 1 . 1 1 1 1 1 . . . . . . . . . . . . . . . . Scrap Searched 5 | . . . 1 . . . . . . . . . . . . 3 . 1 . . . . . Spaces Dug 5 | . . . . . . . . 3 2 . . . . . . . . . . . . . . Terrain Destroyed 801 | . . . . . . 28 4 84 34 36 1 180 51 . . . 85 279 . 5 3 11 . Melee . | . . . . . . . . . . . . . . . . . . . . . . . . Projectile 51 | . . . . . . . . 7 9 . 1 13 3 . . . 3 5 . 5 3 2 . AOE 750 | . . . . . . 28 4 77 25 36 . 167 48 . . . 82 274 . . . 9 . Terrain Rammed . | . . . . . . . . . . . . . . . . . . . . . . . . Walls Destroyed . | . . . . . . . . . . . . . . . . . . . . . . . . Machines Disabled . | . . . . . . . . . . . . . . . . . . . . . . . . Actions | -11 -10 -9 -9 -9 -8 -8 -7 -6 -6 -6 -6 -6 -5 -4 -4 -4 -4 -3 -3 -3 -2 -1 -1 --------- Run | Yrd Mat Mat Min Exi Min Mat Fac Fac Ext Cet Arc Hub Fac Fac Upp Upp War Pro Res DSF Res Acc Com Total 13484 | 46 761 587 244 239 95 982 434 826 1338 394 153 438 617 1004 447 178 957 416 144 289 581 1426 888 Wait 2054 | . 140 49 . . . 320 24 211 285 164 36 7 62 331 29 . 50 . . 46 47 184 69 Move 10226 | 39 510 415 243 234 95 540 382 551 920 202 105 377 507 641 411 168 784 389 140 166 477 1135 795 Hop 6 | . . . . . . . . . . . . . . 6 . . . . . . . . . Pick Up 99 | 1 13 13 . 2 . 13 1 7 2 4 . 5 4 8 1 3 6 1 . 9 2 4 . Fast Attach 132 | 6 2 3 . . . 6 3 3 4 4 . 7 6 4 2 2 24 1 3 22 14 6 10 Attach 49 | . 1 3 . . . 5 1 1 1 4 . 1 5 4 3 . 3 1 . 6 1 6 3 Detach 26 | . . . . . . 3 . . 1 3 . 1 1 2 . 1 4 . . . 4 5 1 Swap 107 | . 14 18 . 1 . 9 3 10 9 1 2 1 10 1 . . 2 2 . 4 7 13 . Drop 181 | . 15 27 . 2 . 18 4 12 9 5 2 10 6 5 1 2 18 3 1 7 12 19 3 Fire 447 | . 60 59 . . . 62 13 27 49 7 8 27 13 2 . 2 8 13 . 28 16 51 2 Melee 1 | . . . . . . . . . . . . . . . . . 1 . . . . . . Ram 4 | . . . . . . . . . . . . . 3 . . . . . . . . . 1 Kick 24 | . 6 . 1 . . 6 . 4 1 . . 2 . . . . . . . . . 3 1 Crush 1 | . . . . . . . . . . . . . . . . . . . . 1 . . . Escape Stasis 8 | . . . . . . . . . 5 . . . . . . . . . . . . . 3 Rewire 111 | . . . . . . . 3 . 52 . . . . . . . 49 6 . . 1 . . Trap . | . . . . . . . . . . . . . . . . . . . . . . . . Miscellaneous 8 | . . . . . . . . . . . . . . . . . 8 . . . . . . Route ------- -11/Scrapyard -10/Materials (discovered 4 exits: *Mat x3 / [*Min]) -9/Materials (discovered 2 exits: *Min x2) -9/Mines -9/Exiles -8/Mines -8/Materials (discovered 2 exits: *Fac / [*Sto]) -7/Factory (discovered 2 exits: *Fac / Low) -6/Factory (discovered 5 exits: Fac x4 / *Ext) -6/Extension (discovered 3 exits: *Fac x2 / *Cet) -6/Cetus -6/Archives (discovered 3 exits: *Fac / *Hub x2) -6/Hub_04(d) (discovered 2 exits: *Fac x2) -5/Factory (discovered 4 exits: *Fac x4) -4/Factory (discovered 5 exits: *Res x2 / *Upp x2 / Arm) -4/Upper Caves -4/Upper Caves -4/Warlord -3/Proximity Caves -3/Research -3/DSF -2/Research (discovered 3 exits: *Acc x3) -1/Access -1/Command History --------- Turn | Location | Event 5 | -11/Scrapyard | Discovered new exit (range 14) 55 | -11/Scrapyard | Entered Materials 157 | -10/Materials | Discovered new exit (range 6) 308 | -10/Materials | Build established: Mutant 638 | -10/Materials | Discovered new exit (range 9) 719 | -10/Materials | Discovered new exit (range 16) 735 | -10/Materials | Central database locked down 855 | -10/Materials | Build established: Scavenger-Mutant 976 | -10/Materials | Discovered new exit (range 16) 1034 | -10/Materials | Entered another Materials area 1034 | -9/Materials | Evolved 2 slots: Utility x2 1225 | -9/Materials | Identified exit to Mines 1581 | -9/Materials | Central database locked down 1813 | -9/Materials | Core integrity fell below 50% 2055 | -9/Materials | Entered Mines 2078 | -9/Mines | Met a Derelict bent on vengeance 2511 | -9/Mines | Deemed a non-threat by the Exiles lab entrance 2511 | -9/Mines | Discovered new exit (range 5) 2519 | -9/Mines | Entered Exiles 2565 | -9/Exiles | Met 8R-AWN 2599 | -9/Exiles | Met EX-HEX 2658 | -9/Exiles | Met EX-BIN 2679 | -9/Exiles | Aligned with FarCom system 2681 | -9/Exiles | Given EX-Vault access code 2727 | -9/Exiles | Opened EX-Vault 2745 | -9/Exiles | Found Field Lobotomy Kit 2780 | -9/Exiles | Warned to stay clear of 0b10 Research branches 2837 | -9/Exiles | Met EX-DEC 2883 | -9/Exiles | Learned location of Zion (-7) 2950 | -9/Exiles | Discovered new exit (range 12) 2969 | -9/Exiles | Left Exiles lab with Field Lobotomy Kit 2969 | -9/Exiles | Entered Mines 3129 | -8/Mines | Discovered new exit (range 11) 3150 | -8/Mines | Entered Materials 3150 | -8/Materials | Evolved 2 slots: Propulsion x1, Weapon x1 3472 | -8/Materials | Build established: Scavenger-Skirmisher 3746 | -8/Materials | Discovered new exit (range 11) 3768 | -8/Materials | Central database locked down 3863 | -8/Materials | Repaired Aluminum Leg 3891 | -8/Materials | Repaired Aluminum Leg 3918 | -8/Materials | Repaired Aluminum Leg? 4383 | -8/Materials | Discovered new exit (range 17) 4407 | -8/Materials | Entered Factory 4407 | -7/Factory | Evolved 2 slots: Utility x1, Weapon x1 4408 | -7/Factory | Identified exit to Lower Caves 4915 | -7/Factory | Discovered new exit (range 9) 4969 | -7/Factory | Entered another Factory area 4969 | -6/Factory | Evolved 2 slots: Utility x2 5150 | -6/Factory | Repaired Imp. Heat Sink 5286 | -6/Factory | Discovered new exit (range 13) 5286 | -6/Factory | Central database locked down 5404 | -6/Factory | Fabricated Thunder Leg (x2) 5487 | -6/Factory | Identified exit to Factory 5625 | -6/Factory | Fabricated Thunder Leg? 5696 | -6/Factory | Assimilated H-61 Shepherd with FLK Orb 5732 | -6/Factory | Build established: Skirmisher 5945 | -6/Factory | Destroyed 7 combat bots 5967 | -6/Factory | Identified exit to Extension 5968 | -6/Factory | Entered Extension 6003 | -6/Extension | Rescued a captive Derelict 6004 | -6/Extension | Rescued a captive Derelict 6028 | -6/Extension | Rescued a captive Derelict 6234 | -6/Extension | Rescued A7 6244 | -6/Extension | Rescued a captive Derelict 6317 | -6/Extension | Central database locked down 6352 | -6/Extension | Rescued a captive Derelict 6417 | -6/Extension | Rescued a captive Derelict 6479 | -6/Extension | Build established: Scavenger-Skirmisher 6672 | -6/Extension | Spotted B-75 Beast 6685 | -6/Extension | Allies destroyed B-75 Beast 6700 | -6/Extension | Spotted B-75 Beast 6719 | -6/Extension | Allies destroyed B-75 Beast 6732 | -6/Extension | Discovered exit to Factory (range 3) 6749 | -6/Extension | Lost 3 allies 6834 | -6/Extension | Rescued a captive Derelict 6835 | -6/Extension | Rescued a captive Derelict 7287 | -6/Extension | Build established: Commander-Skirmisher 7300 | -6/Extension | Rescued a captive Derelict 7368 | -6/Extension | First assault squad dispatched 7402 | -6/Extension | P-60 Hacker assimilated allied Q1-F0S(g) 7451 | -6/Extension | Destroyed 9 combat bots 7478 | -6/Extension | Rescued a captive Derelict 7504 | -6/Extension | Discovered exit to Factory (range 10) 7505 | -6/Extension | Discovered new exit (range 6) 7511 | -6/Extension | Identified exit to Cetus 7584 | -6/Extension | Disrupted transfer network 7585 | -6/Extension | Entered Cetus 7585 | -6/Cetus | Accompanied by 15 allies (A7) 7590 | -6/Cetus | Acquired a Cetus Manufacturing Module code from A7 7601 | -6/Cetus | Spotted Cetus Guard 7601 | -6/Cetus | Spotted Cetus Guard 7604 | -6/Cetus | Spotted Cetus Guard 7604 | -6/Cetus | Spotted Cetus Guard 7612 | -6/Cetus | Destroyed Cetus Guard 7616 | -6/Cetus | Assimilated Cetus Guard with FLK Orb 7626 | -6/Cetus | Allies destroyed Cetus Guard 7631 | -6/Cetus | Allies destroyed Cetus Guard 7643 | -6/Cetus | Lost 5 allies 7659 | -6/Cetus | Lost 3 parts (1n2w) 7756 | -6/Cetus | Started Cetus Manufacturing Module 7768 | -6/Cetus | Escorted A7 to Cetus Mainframe 7781 | -6/Cetus | Manufactured an Enhanced Grunt 7806 | -6/Cetus | Manufactured an Enhanced Grunt 7831 | -6/Cetus | Manufactured an Enhanced Grunt 7856 | -6/Cetus | Manufactured an Enhanced Grunt 7881 | -6/Cetus | Manufactured an Enhanced Grunt 7960 | -6/Cetus | Discovered new exit (range 16) 7977 | -6/Cetus | Identified exit to Archives 8036 | -6/Cetus | Entered Archives 8036 | -6/Archives | Accompanied by 16 allies (A7) 8041 | -6/Archives | Received a hacking code to weaken MAIN.C 8089 | -6/Archives | Discovered new exit (range 15) 8100 | -6/Archives | Discovered new exit (range 16) 8115 | -6/Archives | Discovered exit to Factory (range 16) 8128 | -6/Archives | Unable to access archive contents 8146 | -6/Archives | Identified exit to Hub_04(d) 8225 | -6/Archives | Entered Hub_04(d) 8225 | -6/Hub_04(d) | Accompanied by 13 allies 8225 | -6/Hub_04(d) | Discovered exit to Factory (range 10) 8330 | -6/Hub_04(d) | Discovered exit to Factory (range 8) 8331 | -6/Hub_04(d) | Watched by a mysterious "MATRIX" hacker 8527 | -6/Hub_04(d) | Found Prototype Device 8527 | -6/Hub_04(d) | Identified Exp. Thermal Shield 8575 | -6/Hub_04(d) | First assault squad dispatched 8644 | -6/Hub_04(d) | Spotted B-75 Beast 8647 | -6/Hub_04(d) | Network Hub disabled 8663 | -6/Hub_04(d) | Allies destroyed B-75 Beast 8685 | -6/Hub_04(d) | Garrison activated, responded to threat 8694 | -6/Hub_04(d) | Spotted Lightning 8707 | -6/Hub_04(d) | Spotted Lightning 8734 | -6/Hub_04(d) | Lost 8 allies 8761 | -6/Hub_04(d) | Spotted Lightning 8786 | -6/Hub_04(d) | Entered Factory 8786 | -5/Factory | Evolved 2 slots: Propulsion x1, Utility x1 8898 | -5/Factory | Allied Derelicts emerged from ambush trap array 9086 | -5/Factory | First assault squad dispatched 9238 | -5/Factory | Destroyed 9 combat bots 9248 | -5/Factory | Found Prototype Launcher 9248 | -5/Factory | Identified Tesla Bomb Launcher 9283 | -5/Factory | Released all parts (9) 9307 | -5/Factory | Core integrity fell below 50% 9313 | -5/Factory | Lost 6 parts (1p1n4w) 9373 | -5/Factory | Identified exit to Factory 9389 | -5/Factory | Entered another Factory area 9389 | -4/Factory | Evolved 2 slots: Utility x2 9502 | -4/Factory | Fabricated Thunder Leg? 9535 | -4/Factory | Build established: Mutant 9783 | -4/Factory | Found Quantum Capacitor 9803 | -4/Factory | Discovered new exit (range 15) 9912 | -4/Factory | Identified exit to Research 9965 | -4/Factory | Identified exit to Upper Caves 9965 | -4/Factory | Identified exit to Armory 9975 | -4/Factory | Discovered exit to Research (range 5) 10011 | -4/Factory | Spotted B-86 Titan 10014 | -4/Factory | Entered Upper Caves 10037 | -4/Upper Caves | Encountered a Warlord checkpoint 10042 | -4/Upper Caves | System corruption reached 10% 10209 | -4/Upper Caves | Lost 3 allies 10225 | -4/Upper Caves | Learned location of Armory (-4) 10226 | -4/Upper Caves | Discovered new exit (range 13) 10230 | -4/Upper Caves | Identified exit to Upper Caves 10230 | -4/Upper Caves | Entered another Upper Caves area 10245 | -4/Upper Caves | Encountered a Warlord checkpoint 10286 | -4/Upper Caves | Entered a destroyed Warlord outpost 10302 | -4/Upper Caves | Discovered new exit (range 8) 10308 | -4/Upper Caves | Identified exit to Warlord 10309 | -4/Upper Caves | Entered Warlord 10323 | -4/Warlord | System corruption cleaned by Quarantine Array 10352 | -4/Warlord | Met Warlord 10364 | -4/Warlord | Received a Watcher feed algorithm from an ecstatic Tinkerer 10377 | -4/Warlord | Warlord's base attacked by MAIN.C 10408 | -4/Warlord | Found Prototype Hackware 10408 | -4/Warlord | Identified Ghost Barrier 10444 | -4/Warlord | Found Prototype Reactor 10622 | -4/Warlord | Found Prototype Energy Cannon 10622 | -4/Warlord | Identified Vortex Cannon 10624 | -4/Warlord | Found Vortex Cannon 10727 | -4/Warlord | Warlord forces counterattacked 10863 | -4/Warlord | Opened side exit 10930 | -4/Warlord | Build established: Hacker-Skirmisher 10943 | -4/Warlord | Lost 7 allies 11023 | -4/Warlord | Spotted Executioner 11040 | -4/Warlord | Lost 3 allies 11052 | -4/Warlord | Warlord base infiltrated, sounded retreat 11053 | -4/Warlord | Enhanced Grunt warped into view 11053 | -4/Warlord | Enhanced Grunt warped into view 11053 | -4/Warlord | Enhanced Grunt warped into view 11053 | -4/Warlord | Enhanced Demolisher warped into view 11053 | -4/Warlord | Enhanced Demolisher warped into view 11053 | -4/Warlord | Enhanced Demolisher warped into view 11079 | -4/Warlord | Spotted Executioner 11093 | -4/Warlord | Spotted Striker 11119 | -4/Warlord | Found Prototype Ballistic Cannon 11119 | -4/Warlord | Identified Hvy. Autocannon 11142 | -4/Warlord | Spotted B-90 Cyclops 11153 | -4/Warlord | Spotted B-86 Titan 11157 | -4/Warlord | Spotted Striker 11180 | -4/Warlord | Spotted Executioner 11182 | -4/Warlord | Lost 7 allies 11185 | -4/Warlord | Found Prototype Launcher 11185 | -4/Warlord | Identified Exp. Neutron Missile Launcher 11197 | -4/Warlord | Destroyed LV-01A 11200 | -4/Warlord | Destroyed Executioner 11212 | -4/Warlord | Found Prototype Processor 11212 | -4/Warlord | Identified Exp. Core Analyzer 11224 | -4/Warlord | Destroyed 15 combat bots 11228 | -4/Warlord | Lost 4 allies 11233 | -4/Warlord | Discovered new exit (range 12) 11243 | -4/Warlord | Identified exit to Proximity Caves 11244 | -4/Warlord | Entered Proximity Caves 11361 | -3/Proximity Caves | Attracted the attention of an 0b10 outpost 11453 | -3/Proximity Caves | Build established: Scavenger-Gunner 11509 | -3/Proximity Caves | Destroyed 8 combat bots 11522 | -3/Proximity Caves | Lost 3 parts (2n1w) 11523 | -3/Proximity Caves | Spotted B-86 Titan 11570 | -3/Proximity Caves | Core integrity fell below 50% 11613 | -3/Proximity Caves | Discovered exit to Research (range 15) 11619 | -3/Proximity Caves | Lost 8 parts (2n4u2w) 11621 | -3/Proximity Caves | Entered Research 11621 | -3/Research | Evolved 2 slots: Power x1, Utility x1 11697 | -3/Research | Identified exit to DSF 11697 | -3/Research | Entered DSF 11719 | -3/DSF | Additional patrols routed to DSF 11741 | -3/DSF | Found Prototype Hackware 11741 | -3/DSF | Identified Exp. Hacking Suite 11743 | -3/DSF | Found Exp. Hacking Suite 11745 | -3/DSF | Found Exp. Hacking Suite 11747 | -3/DSF | Found Exp. Hacking Suite 11754 | -3/DSF | Lost 3 parts (2u1w) 11770 | -3/DSF | Identified Vortex Chain Reactor 11927 | -3/DSF | Sterilization system engaged 11947 | -3/DSF | Ambient heat levels rising (+10) 11962 | -3/DSF | Ambient heat levels rising (+10) 11967 | -3/DSF | Lost 10 parts (1p4n2u3w) 11977 | -3/DSF | Ambient heat levels rising (+10) 11992 | -3/DSF | Ambient heat levels rising (+10) 12007 | -3/DSF | Ambient heat levels rising (+10) 12022 | -3/DSF | Ambient heat levels rising (+10) 12026 | -3/DSF | Found Gamma Bomb Array 12031 | -3/DSF | Discovered new exit (range 14) 12037 | -3/DSF | Ambient heat levels rising (+10) 12045 | -3/DSF | Identified exit to Research 12052 | -3/DSF | Ambient heat levels rising (+10) 12056 | -3/DSF | Entered Research 12056 | -2/Research | Warlord forces began assault on 0b10 12056 | -2/Research | Evolved 2 slots: Propulsion x1, Utility x1 12081 | -2/Research | Distinguished unit "Metalheads" dispatched to help 12140 | -2/Research | Identified exit to Access 12166 | -2/Research | Research machine network offline 12179 | -2/Research | Fabricated Rnf. Quantum Reactor? 12247 | -2/Research | Build established: Wizard-Skirmisher 12383 | -2/Research | Found Prototype Processor 12383 | -2/Research | Identified Exp. Melee Analysis Suite 12425 | -2/Research | Spotted Striker 12442 | -2/Research | Destroyed Striker 12465 | -2/Research | Lost 3 allies 12489 | -2/Research | Found Exp. Core Analyzer 12504 | -2/Research | Lost 4 allies 12557 | -2/Research | Found Prototype Device 12557 | -2/Research | Identified Exp. EM Disruption Field 12637 | -2/Research | Spotted Striker 12643 | -2/Research | Spotted Executioner 12644 | -2/Research | Destroyed Striker 12645 | -2/Research | Borebot progress halted 12674 | -2/Research | Borebot progress halted 12737 | -2/Research | Build established: Hacker-Gunner 12769 | -2/Research | Entered Access 12769 | -1/Access | Accompanied by 1 ally 12769 | -1/Access | Evolved 2 slots: Utility x1, Weapon x1 12927 | -1/Access | Garrison activated, responded to threat 12965 | -1/Access | Lost 6 allies 13421 | -1/Access | Build established: Scavenger-Gunner 14250 | -1/Access | Identified exit to Command 14340 | -1/Access | System corruption reached 10% 14411 | -1/Access | Lost 10 parts (1p2n5u2w) 14431 | -1/Access | Entered Command 14833 | -1/Command | Lost 3 parts (1p1u1w) 14907 | -1/Command | Build established: Mutant 14935 | -1/Command | Spotted Alpha 7 14935 | -1/Command | Spotted Striker 14935 | -1/Command | Spotted Executioner 14935 | -1/Command | Spotted Executioner 14935 | -1/Command | Spotted Alpha 7 14935 | -1/Command | Spotted Striker 14935 | -1/Command | Spotted Executioner 14935 | -1/Command | Spotted Executioner 14936 | -1/Command | Spotted B-99 Colossus 14941 | -1/Command | Core integrity fell below 50% 14942 | -1/Command | Spotted B-99 Colossus 14944 | -1/Command | Core integrity fell below 20% 14946 | -1/Command | Destroyed by Striker with Compact Linear Accelerator Last Messages --------------- 14945_ Field strength at 94. 14946_ Penetrated by Slug. 14946_ Slug penetrates B-99 Colossus. 14946_ Slug penetrates Wall. 14946_ Knocked back. 14946_ Triggered Stasis Trap. 14946_ A bubble of rippling energy engulfs the area. 14946_ Field strength at 94. 14946_ Knocked back. 14946_ Penetrated by Slug. 14946_ Helical Railgun destroyed. 14946_ Penetrated by Slug. 14946_ Slug penetrates Alpha 7. 14946_ Field strength at 53. 14946_ Penetrated by Slug. 14946_ Slug penetrates B-99 Colossus. 14946_ Penetrated by Slug. 14946_ Slug penetrates Executioner. 14946_ Slug penetrates B-99 Colossus. Map ----- +----------------------------------------------------+ | ???????????????# #?????????????????????????? | | ???????????????+ #?????????????????????????? | | ???????????????# ###???????????????????????? | | ???????????????# #???????????????????????? | | ???????????????# #???????????????????????? | | ?????????????# #???????????????????????? | | ?????????????# #???????????????????????? | | ############## #???????????????????????? | | #???????????????????????? | | #???????????????????????? | | #???????????????????????? | | #???????????????????????? | | #??# ##### ########p #???????????????????????? | | #??# #####+##?????# #???????????????????????? | | #??# # #?????# #???????????????????????? | | #??# # #?????# #???????????????????????? | | #??# # #?????# p #???????????????????????? | | #??# # #?????# #???????????????????????? | | #### # #?????#% p #???????????????????????? | | # #????##///;##??????????????????????? | | + #????# ^ %#??????????????????????? | | +####### #???## 7% ##?????????????????????? | | ## #???# 7 #?????????????????????? | | ## #???## K %K ##?????????????????????? | | ## ! #???# =^%!#?????????????????????? | | """" ## #???## E !=@##?????????????????????? | | """ ## #???# ^ %^E#?????????????????????? | | """" #########???##E %^##?????????????????????? | | """" #???????????# BB #?????????????????????? | | #??????????#;; ^ BB##?????????????????????? | | #?????????# BB ??????????????????????? | | """" #######???# BB ??????????????????????? | | """" + #???# ??????????????????????? | | """ ##### #???# """""" ??????????????????????? | | """" #??#####??# ?????? ?????????????????????? | | #??# ??# ??????? ?????????????????????? | | #??# = #?# ???????? ?????????????????????? | | #??# #?# ???????? ?????????????????????? | | #### #??????????? ????????????????????? | | + ## #???????????^ ????????????????????? | | ####### ## #??????????? ????????????????????? | | ??????# ## #???????????? ????????????????????? | | ??????# ## #????????????#?????????????????????? | | ??????# #?? #??????????????????????????????????? | | ??????# #####+#############??????????????????????? | | ??????# #??????????????????????? | | ??????#### #??????????????????????? | | ?????????# #??????????????????????? | | ?????????# ???????????????????? | | ??########+##+##+###########?????????????????????? | +----------------------------------------------------+ Best States ------------- Heat Dissipation 159 Coolant Potential 100 Energy Generation 55 Energy Capacity 950 Matter Stores 300 Matter Capacity 300 Sight Range 16 Robot Scan Range 16 Terrain Scan Density 110 Base Temperature (-) 150 EM Shielding 3 Armor Coverage 1200 Resistance: TH 30 Resistance: EM 15 Point Defense Rating 80 Weapon Cycling 15 Evasion (%) 70 Targeting Accuracy 22 Target Analysis 8 Core Analysis 12 Armor Integrity Analysis 40 Recoil Reduction 4 Energy Filtering 30 Particle Charging 20 Offensive Hacking 74 Defensive Hacking 20 Item Schematics ----------------- Prc. Beam Rifle | -8/Materials | Scanalyzed Hvy. EM Shotgun | -8/Materials | Scanalyzed Thunder Leg | -6/Factory | Hacked Tactical Quantum Warhead | -2/Research | Hacked Hvy. Shield Leg | -2/Research | Hacked Robot Schematics ------------------ None Fabricated ------------ Thunder Leg | x2 | -6/Factory Thunder Leg | x2 | -6/Factory Thunder Leg | x2 | -4/Factory Rnf. Quantum Reactor | x2 | -2/Research | Preloaded Repaired ---------- Aluminum Leg | 13% | -8/Materials Aluminum Leg | 26% | -8/Materials Aluminum Leg | 35% | -8/Materials Imp. Heat Sink | 7% | -6/Factory Studied --------- Beam Rifle | -9/Materials | Hacked EM Shotgun | -9/Materials | Hacked Rocket Launcher | -9/Materials | Hacked Shock Rifle | -8/Materials | Hacked Centrium Leg | -1/Access | Hacked Alien Tech Used ----------------- None Achievements -------------- Main Advantage No Explosion For You Challenges ------------ None Game ------ Seed ConstructTacticalTorch Manual? 0 Play Time 03:36:51 Cumulative 185.3 hours Start 2026.07.25 @ 13:42:53 End 2026.07.25 @ 19:18:00 Sessions 3 Manual Loads 0 Difficulty Rogue Special Mode None Game No. 102 Rogue 102 Adventurer 0 Explorer 0 Win Type - Total 4 Types 4/0/0/0/0/0/0/0/0/0 Lore% 72 Gallery% 63 Achievement% 54 Wizard Run 0 Options --------- Layout 1 ASCII 0 Keyboard 0 Movement Numpad Keybinds 0 Fullscreen 1 Font 24/Smallcaps Map View 50x35 Zoom Use 0% Tactical HUD 1 Map Filters NONE Filters NONE Steam 1 RUN: 749d1a4c-0e67-4202-9c29-64521c29f789